fUSD/lending_fUSD_20241010
["ID","MTS","AMOUNT","RATE_DAILY","PERIOD"]
[340099672,1728532243163,-1599.03684236,0.00011,2]
[340099674,1728532243390,-3160.4615009,0.00011,2]
[340099675,1728532243500,-6542.24812749,0.00011,2]
[340099685,1728532246128,-7125.0,0.00011,2]
[340099688,1728532246270,-3326.38623389,0.00011,2]
[340099689,1728532461926,471.51,8.219e-05,2]
[340099690,1728532525215,200.0,9.784e-05,2]
[340099691,1728532729344,250.0,9.794e-05,2]
[340099692,1728532739569,174.14,7.835e-05,2]
[340099693,1728532820226,2100.0,0.000102,3]
[340099694,1728532822901,4200.0,0.000103,3]
[340099695,1728532825011,6300.0,0.000104,3]
[340099696,1728532827132,8400.0,0.000105,3]
[340099697,1728532829233,10500.0,0.000106,3]
[340099698,1728532831338,2100.0,0.000107,3]
[340099699,1728532833450,2100.0,0.000108,3]
[340099700,1728532835546,2100.0,0.000109,3]
[340099701,1728532949854,479.2,8.219e-05,2]
[340099702,1728533018076,840.0,9.796e-05,2]
[340099703,1728533060099,2658.901884,0.00010213,2]
[340099705,1728533082491,531.61,9.799e-05,2]
[340099706,1728533119777,4383.06,9.803e-05,2]
[340099707,1728533196807,1219.45,9.792e-05,2]
[340099708,1728533218412,446.69,9.792e-05,2]
[340099709,1728533235413,250.0,9.794e-05,2]
[340099710,1728533242764,1995.79957097,0.00010212,2]
[340099711,1728533247363,-404.80519136,0.00010265,2]
[340099712,1728533247383,-188.7012,0.00010312,2]
[340099713,1728533247403,-404.80519134,0.00010315,2]
[340099714,1728533247422,-404.80519134,0.00010365,2]
[340099715,1728533247443,-479.2,0.00010465,2]
[340099716,1728533247462,-699.02264972,0.00010645,2]
[340099717,1728533308638,5555.51,9.805e-05,2]
[340099738,1728533329177,660.73,9.805e-05,2]
[340099743,1728533349254,1201.71,9.808e-05,2]
[340099744,1728533356103,250.0,9.808e-05,2]
[340099745,1728533375452,305.7723,0.00010165,2]
[340099746,1728533385472,215.9,9.811e-05,2]
[340099747,1728533418268,167.07,9.812e-05,2]
[340099748,1728533418496,167.07,9.814e-05,2]
[340099749,1728533418723,167.07,9.817e-05,2]
[340099750,1728533418943,167.07,9.819e-05,2]
[340099751,1728533419159,167.07,9.822e-05,2]
[340099752,1728533419424,167.07,9.825e-05,2]
[340099753,1728533419632,167.07,9.827e-05,2]
[340099754,1728533419836,167.07,9.83e-05,2]
[340099755,1728533420055,167.07,9.832e-05,2]
[340099756,1728533420269,167.07,9.835e-05,2]
[340099757,1728533420467,167.07,9.837e-05,2]
[340099758,1728533420673,167.07,9.84e-05,2]
[340099759,1728533420885,167.07,9.843e-05,2]
[340099760,1728533421104,167.07,9.845e-05,2]
[340099761,1728533421307,167.07,9.848e-05,2]
[340099762,1728533421668,167.07,9.85e-05,2]
[340099763,1728533421761,167.07,9.853e-05,2]
[340099764,1728533421978,167.07,9.855e-05,2]
[340099765,1728533422178,167.07,9.858e-05,2]
[340099766,1728533422427,167.07,9.861e-05,2]
[340099774,1728533432291,-396.48017172,0.00010645,2]
[340099777,1728533432395,-280.56667432,0.00010645,2]
[340099778,1728533432553,-123.93050424,0.00010645,2]
[340099779,1728533432563,-289.02264972,0.0001066,2]
[340099792,1728533435999,200.0,9.812e-05,2]
[340099793,1728533438401,-1210.97735028,0.0001066,2]
[340099794,1728533438411,-484.60477234,0.00010661,2]
[340099795,1728533438474,-844.94134603,0.00010661,2]
[340099796,1728533438700,-170.45388163,0.00010661,2]
[340099797,1728533438709,-743.52417813,0.00010666,2]
[340099799,1728533440364,-714.20042334,0.00010666,2]
[340099800,1728533440415,-42.27539853,0.00010666,2]
[340099801,1728533440424,-724.16729127,0.00010671,2]
[340099802,1728533440435,-769.49863111,0.00010671,2]
[340099803,1728533440520,-6.33407762,0.00010671,2]
[340099804,1728533440529,-1500.0,0.00010673,2]
[340099805,1728533440538,-1500.0,0.00010678,2]
[340099806,1728533440548,-150.0,0.00010682,2]
[340099807,1728533440558,-300.0,0.00010694,2]
[340099808,1728533440567,-1500.0,0.00010695,2]
[340099809,1728533440580,-1500.0,0.00010699,2]
[340099810,1728533440590,-1500.0,0.00010702,2]
[340099811,1728533440599,-150.0,0.00010704,2]
[340099812,1728533440608,-1500.0,0.00010709,2]
[340099813,1728533440617,-1500.0,0.00010713,2]
[340099814,1728533440626,-1500.0,0.00010715,2]
[340099815,1728533440635,-1500.0,0.00010718,2]
[340099816,1728533440644,-150.0,0.00010718,2]
[340099817,1728533440653,-150.0,0.00010718,2]
[340099818,1728533440666,-1500.0,0.0001072,2]
[340099819,1728533440676,-1500.0,0.00010721,2]
[340099820,1728533440685,-150.0,0.00010731,2]
[340099821,1728533440696,-1500.0,0.00010733,2]
[340099822,1728533440705,-150.0,0.0001074,2]
[340099823,1728533440716,-1500.0,0.00010743,2]
[340099824,1728533440728,-1500.0,0.00010744,2]
[340099825,1728533440738,-150.0,0.00010744,2]
[340099826,1728533440747,-1500.0,0.00010747,2]
[340099827,1728533440758,-1500.0,0.00010747,2]
[340099828,1728533440768,-150.0,0.0001075,2]
[340099829,1728533440778,-150.0,0.00010753,2]
[340099830,1728533440787,-150.0,0.00010761,2]
[340099831,1728533440797,-166.48374208,0.00010763,2]
[340099832,1728533440807,-150.0,0.0001078,2]
[340099833,1728533440815,-150.0,0.00010781,2]
[340099834,1728533440826,-1500.0,0.00010791,2]
[340099835,1728533440835,-150.0,0.00010808,2]
[340099836,1728533440845,-1500.0,0.0001081,2]
[340099837,1728533440855,-1500.0,0.00010817,2]
[340099838,1728533441030,-1500.0,0.00010819,2]
[340099839,1728533441042,-1076.96542485,0.00010824,2]
[340099840,1728533441052,-150.0,0.0001083,2]
[340099841,1728533441061,-150.0,0.00010834,2]
[340099842,1728533441071,-1500.0,0.00010857,2]
[340099843,1728533441080,-150.0,0.00010887,2]
[340099844,1728533441089,-1500.0,0.00010899,2]
[340099845,1728533441099,-1349.68531294,0.000109,2]
[340099846,1728533441107,-7208.63419877,0.000109,2]
[340099847,1728533441117,-180.84942221,0.000109,2]
[340099848,1728533441126,-332.66959199,0.000109,2]
[340099849,1728533441138,-174.83352025,0.000109,2]
[340099850,1728533441148,-1037.7942,0.000109,2]
[340099851,1728533441157,-150.0,0.00010905,2]
[340099852,1728533441167,-150.0,0.0001093,2]
[340099853,1728533441177,-150.0,0.00010951,2]
[340099854,1728533441187,-158.31,0.00010959,2]
[340099855,1728533441196,-152.74,0.00010959,2]
[340099856,1728533441206,-154.139,0.00010959,2]
[340099857,1728533441215,-155.548,0.00010965,2]
[340099858,1728533441224,-1149.0,0.00010965,2]
[340099859,1728533441233,-9.02342975,0.00010965,2]
[340099867,1728533443335,-4750.00000002,0.00010965,2]
[340099870,1728533443651,-8761.97657023,0.00010965,2]
[340099871,1728533443665,-5880.0,0.00010965,2]
[340099872,1728533443676,-1083.0,0.00010965,2]
[340099873,1728533443686,-4417.1371958,0.00010999,2]
[340099874,1728533443697,-543.95671687,0.00010999,2]
[340099875,1728533443708,-6822.01344322,0.00011,2]
[340099876,1728533443720,-293.44999981,0.00011,2]
[340099877,1728533443735,-9718.74312821,0.00011,2]
[340099882,1728533446314,-1552.725,0.00011,2]
[340099883,1728533446370,-3192.32152422,0.00011,2]
[340099884,1728533446478,-1221.7588,0.00011,2]
[340099885,1728533446584,-7368.6299918,0.00011,2]
[340099886,1728533484246,1666.0,0.000102,5]
[340099887,1728533524465,498.13,9.135e-05,2]
[340099888,1728533841253,160.75,0.000102,2]
[340099889,1728533872529,192.65,8.161e-05,2]
[340099890,1728533909488,250.0,0.00010107,2]
[340099891,1728534012597,500.0,0.00010056,2]
[340099892,1728534028260,505.09,8.219e-05,2]
[340099893,1728534042412,672.0,0.00010022,2]
[340099894,1728534077902,1852.42,0.00010066,2]
[340099895,1728534082078,156.5310394,0.00010201,2]
[340099896,1728534120165,23900.0,0.00010074,2]
[340099897,1728534267686,156.97,0.00010116,2]
[340099898,1728534280428,10773.65420186,0.00010201,2]
[340099899,1728534296048,1593.06,0.00010116,2]
[340099900,1728534372555,1875.87,0.00010078,2]
[340099901,1728534381973,192.65,8.1e-05,2]
[340099902,1728534428463,250.0,0.00010044,2]
[340099903,1728534449135,-505.09,0.00010479,2]
[340099904,1728534449154,-180.41,0.00010578,2]
[340099905,1728534449173,-1500.0,0.00010629,2]
[340099906,1728534449194,-159.77,0.00010662,2]
[340099907,1728534449214,-1500.0,0.00010677,2]
[340099908,1728534449235,-16.36511129,0.00010723,2]
[340099909,1728534450621,200.0,0.0001007,2]
[340099933,1728534606804,486.6,8.65e-05,2]
[340099941,1728534631481,-907.66,0.00010371,2]
[340099942,1728534631491,-1483.63488871,0.00010723,2]
[340099943,1728534631501,-475.814,0.00010765,2]
[340099944,1728534631511,-1500.0,0.00010825,2]
[340099945,1728534631520,-300.0,0.00010839,2]
[340099946,1728534631530,-4423.90111129,0.0001084,2]
[340099947,1728534631641,-4779.40888871,0.0001084,2]
[340099948,1728534631651,-150.0,0.0001084,2]
[340099949,1728534631660,-1029.22528494,0.0001084,2]
[340099950,1728534631700,-1528.31234976,0.0001084,2]
[340099951,1728534631710,-299.99,0.00010841,2]
[340099952,1728534631719,-325.89,0.00010841,2]
[340099953,1728534631729,-999.99,0.00010841,2]
[340099954,1728534631740,-150.99,0.00010841,2]
[340099955,1728534631749,-5228.05,0.00010841,2]
[340099956,1728534631760,-569.6,0.00010841,2]
[340099957,1728534631771,-1492.93374942,0.00010846,2]
[340099958,1728534631780,-4324.3184,0.000109,2]
[340099959,1728534631791,-1987.99820145,0.000109,2]
[340099960,1728534631802,-582.19864393,0.000109,2]
[340099961,1728534631816,-1042.98395462,0.000109,2]
[340099962,1728534631827,-160.78836512,0.000109,2]
[340099963,1728534631837,-3406.66,0.000109,2]
[340099965,1728534631846,-183.81,0.000109,2]
[340099967,1728534631856,-308.61447508,0.000109,2]
[340099969,1728534631866,-6463.20320518,0.000109,2]
[340099984,1728534637707,-1085.4735462,0.00010765,2]
[340099985,1728534637815,-12435.5264538,0.00010765,2]
[340099986,1728534637826,-413.78691587,0.000109,2]
[340099987,1728534637836,-1264.57795455,0.000109,2]
[340099988,1728534637846,-1264.57795454,0.000109,2]
[340099989,1728534637856,-164.38861932,0.000109,2]
[340099990,1728534637866,-486.6,0.00010914,2]
[340099991,1728534637875,-1000.0,0.00010945,2]
[340099992,1728534637885,-1000.0,0.00010945,2]
[340099993,1728534638055,-1000.0,0.00010945,2]
[340099994,1728534638065,-1000.0,0.00010945,2]
[340099995,1728534638074,-1000.0,0.00010945,2]
[340099996,1728534638082,-880.2904,0.00010945,2]
[340099997,1728534638091,-159.23,0.00010959,2]
[340099998,1728534638100,-285.87,0.00010959,2]
[340099999,1728534638110,-152.95,0.00010959,2]
[340100000,1728534638119,-642.28649013,0.00010973,2]
[340100001,1728534638127,-500.0,0.00010973,2]
[340100002,1728534638136,-500.0,0.00010973,2]
[340100003,1728534638145,-9949.1219634,0.0001099,2]
[340100004,1728534638154,-881.2058124,0.00010997,2]
[340100005,1728534638163,-3921.39691425,0.00010997,2]
[340100006,1728534639513,-4306.14485705,0.00010997,2]
[340100007,1728534639523,-559.0,0.00011,2]
[340100008,1728534639533,-4231.49887409,0.00011,2]
[340100009,1728534639549,-8947.21879473,0.00011,2]
[340100010,1728534639562,-8943.78386462,0.00011,2]
[340100011,1728534639575,-9077.54866152,0.00011,2]
[340100012,1728534639587,-8943.84023489,0.00011,2]
[340100013,1728534639600,-217710.0,0.00011,2]
[340100014,1728534639610,-331479.26310754,0.00011,2]
[340100015,1728534639621,-10646.15710701,0.00011,2]
[340100016,1728534639635,-1390.74255036,0.00011,2]
[340100017,1728534639679,-1452.25846956,0.00011,2]
[340100018,1728534639789,-445.9049031,0.00011,2]
[340100019,1728534639800,-81099.5642974,0.00011,2]
[340100023,1728534642505,-629.427,0.00010765,2]
[340100024,1728534642516,-839.63,0.00010959,2]
[340100025,1728534642526,-1738.5136876,0.00011,2]
[340100026,1728534642539,-453.86425029,0.00011,2]
[340100027,1728534642718,-301.25385499,0.00011,2]
[340100028,1728534642775,-2151.55353911,0.00011,2]
[340100029,1728534642888,-2502.72300929,0.00011,2]
[340100030,1728534645548,-811.0,0.00010765,2]
[340100031,1728534645558,-6440.1303635,0.00011,2]
[340100032,1728534645570,-31350.72951064,0.00011,2]
[340100033,1728534645797,-6222.99803238,0.00011,2]
[340100034,1728534645845,-283.274203,0.00011,2]
[340100035,1728534660955,1000.0,9.963e-05,2]
[340100036,1728534683991,23900.0,9.898e-05,2]
[340100037,1728534707337,155.37,9.898e-05,2]
[340100038,1728534730218,300.0,0.000102,3]
[340100039,1728534732311,700.0,0.000103,3]
[340100040,1728534734395,1100.0,0.000104,3]
[340100041,1728534736480,1500.0,0.000105,3]
[340100042,1728534738568,1900.0,0.000106,3]
[340100043,1728534740658,300.0,0.000107,3]
[340100044,1728534742742,300.0,0.000108,3]
[340100045,1728534744954,300.0,0.000109,3]
[340100048,1728534873484,250.0,9.893e-05,2]
[340100049,1728534923386,250.0,9.893e-05,2]
[340100050,1728534997193,1624.4,9.893e-05,2]
[340100051,1728535173349,200.0,9.897e-05,2]
[340100052,1728535174018,23900.0,9.897e-05,2]
[340100053,1728535206978,160.93,9.895e-05,2]
[340100054,1728535220350,469.95,8.219e-05,2]
[340100055,1728535300955,151.02,9.909e-05,2]
[340100056,1728535477923,250.0,9.908e-05,2]
[340100057,1728535504881,250.0,9.902e-05,2]
[340100058,1728535560003,1227.9,9.902e-05,2]
[340100059,1728535652140,-300.0,0.0001027,2]
[340100060,1728535652160,-781.85143796,0.00010271,2]
[340100061,1728535709073,840.0,9.904e-05,2]
[340100062,1728535719927,150.59,9.901e-05,2]
[340100063,1728535731144,21870.83740377,9.901e-05,2]
[340100064,1728535731170,2029.16259623,9.901e-05,2]
[340100077,1728535746073,6290.8541,0.00010171,2]
[340100078,1728535752044,481.63,8.219e-05,2]
[340100079,1728535806711,398.0,0.000215,90]
[340100089,1728535831616,-635.0,0.0001028,2]
[340100090,1728535831626,-164.49,0.0001045,2]
[340100091,1728535831637,-101.51,0.00010471,2]
[340100092,1728535831779,-380.12,0.00010471,2]
[340100093,1728535831788,-465.33978981,0.00010718,2]
[340100094,1728535831798,-150.0,0.00010727,2]
[340100095,1728535831807,-150.0,0.00010729,2]
[340100096,1728535831818,-150.0,0.00010736,2]
[340100097,1728535831827,-150.0,0.00010747,2]
[340100098,1728535831839,-150.0,0.0001076,2]
[340100099,1728535831850,-150.0,0.00010763,2]
[340100100,1728535831859,-150.0,0.00010769,2]
[340100101,1728535831868,-150.0,0.0001077,2]
[340100102,1728535831878,-150.0,0.00010793,2]
[340100103,1728535831887,-150.0,0.00010797,2]
[340100104,1728535831896,-150.0,0.00010799,2]
[340100105,1728535831905,-174.24934109,0.00010802,2]
[340100106,1728535831916,-150.0,0.00010806,2]
[340100107,1728535831926,-150.0,0.0001082,2]
[340100108,1728535831935,-150.0,0.00010824,2]
[340100109,1728535831944,-150.0,0.00010833,2]
[340100110,1728535831953,-150.0,0.00010839,2]
[340100111,1728535831963,-150.0,0.00010848,2]
[340100112,1728535831974,-150.0,0.00010853,2]
[340100113,1728535831983,-150.0,0.00010858,2]
[340100114,1728535831993,-150.0,0.00010859,2]
[340100115,1728535832002,-150.0,0.00010859,2]
[340100116,1728535832011,-150.0,0.00010865,2]
[340100117,1728535832020,-150.0,0.00010865,2]
[340100118,1728535832029,-150.0,0.00010889,2]
[340100119,1728535832038,-154.49241497,0.00010893,2]
[340100120,1728535832047,-150.0,0.00010893,2]
[340100121,1728535832056,-150.0,0.00010896,2]
[340100122,1728535832064,-150.0,0.00010898,2]
[340100123,1728535832074,-183.81,0.00010899,2]
[340100124,1728535832085,-1094.9405,0.000109,2]
[340100125,1728535832095,-56677.9248,0.000109,2]
[340100126,1728535832105,-1700.66528858,0.000109,2]
[340100127,1728535832122,-2011.73731142,0.000109,2]
[340100128,1728535832132,-881.13293231,0.000109,2]
[340100129,1728535832141,-2736.43110676,0.000109,2]
[340100130,1728535832172,-299.99,0.000109,2]
[340100131,1728535832184,-242.63193561,0.000109,2]
[340100132,1728535832193,-150.0,0.00010908,2]
[340100133,1728535832202,-150.0,0.0001091,2]
[340100134,1728535832211,-150.0,0.00010916,2]
[340100135,1728535832220,-150.0,0.00010926,2]
[340100136,1728535832230,-150.0,0.00010937,2]
[340100137,1728535832241,-150.0,0.00010938,2]
[340100138,1728535832252,-150.0,0.00010941,2]
[340100139,1728535832261,-150.0,0.00010947,2]
[340100140,1728535832270,-150.0,0.00010949,2]
[340100141,1728535832279,-150.0,0.00010955,2]
[340100142,1728535832288,-154.0,0.00010959,2]
[340100143,1728535832297,-158.31,0.00010959,2]
[340100144,1728535832306,-148.66690941,0.0001096,2]
[340100146,1728535832317,-1.33309059,0.0001096,2]
[340100148,1728535832326,-150.0,0.00010964,2]
[340100150,1728535832335,-150.0,0.00010966,2]
[340100152,1728535832344,-150.0,0.00010972,2]
[340100154,1728535832353,-424.38888601,0.00010973,2]
[340100156,1728535832362,-500.0,0.00010973,2]
[340100158,1728535832371,-150.0,0.00010973,2]
[340100160,1728535832380,-150.0,0.00010975,2]
[340100162,1728535832389,-150.0,0.00010984,2]
[340100164,1728535832398,-150.0,0.00010985,2]
[340100166,1728535832407,-150.0,0.00010988,2]
[340100168,1728535832415,-150.0,0.0001099,2]
[340100170,1728535832424,-150.0,0.00010992,2]
[340100172,1728535832433,-150.0,0.00010995,2]
[340100174,1728535832442,-587.8893656,0.00010998,2]
[340100176,1728535832451,-15162.96089592,0.00011,2]
[340100186,1728535837731,-2099.32696232,0.00011,2]
[340100187,1728535837942,-560.50565751,0.00011,2]
[340100204,1728535839695,-1900.3547065,0.00011,2]
[340100206,1728535839709,-841.6785282,0.00011,2]
[340100221,1728535845886,-1188.68208157,0.0001045,2]
[340100222,1728535861749,150.0,0.00010215,2]
[340100223,1728535903894,404.0366,0.00010171,2]
[340100224,1728536034936,250.0,9.898e-05,2]
[340100226,1728536069217,1034.41,9.893e-05,2]
[340100227,1728536093865,334.4698258,0.0001018,2]
[340100228,1728536099305,436.03,9.893e-05,2]
[340100229,1728536099532,436.03,9.895e-05,2]
[340100230,1728536099762,436.03,9.898e-05,2]
[340100231,1728536100038,436.03,9.901e-05,2]
[340100232,1728536100195,436.03,9.903e-05,2]
[340100233,1728536100392,436.03,9.906e-05,2]
[340100234,1728536100607,436.03,9.908e-05,2]
[340100235,1728536101044,436.03,9.911e-05,2]
[340100236,1728536101250,436.03,9.914e-05,2]
[340100237,1728536101459,436.03,9.916e-05,2]
[340100238,1728536101689,436.03,9.919e-05,2]
[340100239,1728536101932,436.03,9.921e-05,2]
[340100240,1728536102175,436.03,9.924e-05,2]
[340100241,1728536102418,436.03,9.927e-05,2]
[340100242,1728536102631,436.03,9.929e-05,2]
[340100243,1728536102854,436.03,9.932e-05,2]
[340100244,1728536103064,436.03,9.935e-05,2]
[340100245,1728536103495,436.03,9.937e-05,2]
[340100246,1728536103739,436.03,9.94e-05,2]
[340100247,1728536103980,436.03,9.942e-05,2]
[340100248,1728536139007,250.0,9.903e-05,2]
[340100249,1728536232671,224.52,9.893e-05,2]
[340100250,1728536244593,328.0,9.893e-05,2]
[340100251,1728536285197,23900.0,9.903e-05,2]
[340100252,1728536313372,479.63,0.0001,2]
[340100253,1728536376325,540.69,8.219e-05,2]
[340100254,1728536452868,160.93,9.884e-05,2]
[340100255,1728536551810,250.0,9.893e-05,2]
[340100256,1728536597968,517.2,9.89e-05,2]
[340100257,1728536647672,250.0,9.888e-05,2]
[340100258,1728536718252,161.5,9.887e-05,2]
[340100259,1728536769550,737.6,9.886e-05,2]
[340100260,1728536834152,-188.7012,0.0001035,2]
[340100261,1728536834171,-801.6483875,0.0001037,2]
[340100262,1728536834191,-300.0,0.00010449,2]
[340100263,1728536834210,-1141.04418473,0.0001045,2]
[340100264,1728536881485,23900.0,9.892e-05,2]
[340100265,1728536894390,537.61,8.219e-05,2]
[340100266,1728536953184,171.47,9.889e-05,2]
[340100281,1728537031943,-691.36891671,0.00010349,2]
[340100282,1728537032053,-345.0,0.00010349,2]
[340100283,1728537032065,-178.04665733,0.00010349,2]
[340100284,1728537032075,-1685.10541811,0.00010349,2]
[340100285,1728537032086,-2804.11838189,0.00010349,2]
[340100286,1728537032095,-300.0,0.00010449,2]
[340100287,1728537032106,-8858.95581527,0.0001045,2]
[340100288,1728537032115,-1298.92580284,0.0001045,2]
[340100289,1728537032131,-1212.3066568,0.0001045,2]
[340100290,1728537032140,-188.88226183,0.0001047,2]
[340100295,1728537038316,-348.72773817,0.0001047,2]
[340100296,1728537038327,-150.0,0.0001073,2]
[340100297,1728537038338,-300.0,0.00010737,2]
[340100298,1728537038349,-150.0,0.00010741,2]
[340100299,1728537038365,-150.0,0.00010742,2]
[340100300,1728537038374,-1290.28472093,0.00010751,2]
[340100302,1728537039968,-209.71527907,0.00010751,2]
[340100303,1728537039978,-150.0,0.00010753,2]
[340100304,1728537039987,-175.05,0.00010753,2]
[340100305,1728537039996,-150.0,0.00010757,2]
[340100306,1728537040006,-150.0,0.00010758,2]
[340100307,1728537040015,-150.0,0.0001076,2]
[340100308,1728537040025,-150.0,0.00010761,2]
[340100309,1728537040034,-150.0,0.00010772,2]
[340100310,1728537040043,-150.0,0.00010774,2]
[340100311,1728537040052,-150.0,0.00010775,2]
[340100312,1728537040061,-150.0,0.00010787,2]
[340100313,1728537040071,-150.0,0.00010788,2]
[340100314,1728537040080,-150.0,0.00010792,2]
[340100315,1728537040089,-150.0,0.00010803,2]
[340100316,1728537040098,-150.0,0.00010811,2]
[340100317,1728537040108,-150.0,0.00010812,2]
[340100318,1728537040117,-150.0,0.00010814,2]
[340100319,1728537040126,-150.0,0.00010814,2]
[340100320,1728537040136,-150.0,0.00010816,2]
[340100321,1728537040145,-1834.164,0.00010816,2]
[340100322,1728537040154,-52.65051366,0.00010816,2]
[340100323,1728537040170,-97.34948634,0.00010816,2]
[340100324,1728537040179,-150.0,0.00010817,2]
[340100325,1728537040188,-150.0,0.00010818,2]
[340100326,1728537040198,-150.0,0.00010823,2]
[340100327,1728537040207,-602.61051366,0.00010833,2]
[340100328,1728537040226,-681.26488617,0.00010833,2]
[340100334,1728537042999,-216.12460017,0.00010833,2]
[340100335,1728537043009,-150.0,0.00010835,2]
[340100336,1728537043019,-699.02264972,0.00010851,2]
[340100337,1728537043029,-150.0,0.00010855,2]
[340100338,1728537043039,-150.0,0.00010858,2]
[340100339,1728537043048,-614.03463085,0.00010859,2]
[340100340,1728537043074,-77.08186915,0.00010859,2]
[340100341,1728537043084,-150.0,0.0001086,2]
[340100342,1728537043093,-150.0,0.00010861,2]
[340100343,1728537043103,-150.0,0.00010866,2]
[340100344,1728537043114,-150.0,0.00010874,2]
[340100345,1728537043123,-74.14726296,0.00010879,2]
[340100346,1728537043134,-75.85273704,0.00010879,2]
[340100347,1728537043144,-176.83644951,0.00010882,2]
[340100348,1728537043153,-3354.0,0.00010888,2]
[340100349,1728537043162,-1907.0,0.00010888,2]
[340100350,1728537043172,-556.161,0.00010888,2]
[340100351,1728537043181,-1909.196,0.00010888,2]
[340100352,1728537043190,-1.96402072,0.00010888,2]
[340100353,1728537043202,-806.03597928,0.00010888,2]
[340100354,1728537043211,-150.0,0.00010897,2]
[340100355,1728537043220,-8691.2698,0.000109,2]
[340100356,1728537043230,-500.0,0.000109,2]
[340100357,1728537043239,-2284.30937064,0.000109,2]
[340100358,1728537043284,-0.92272737,0.000109,2]
[340100359,1728537043295,-2270.63946054,0.000109,2]
[340100360,1728537043305,-16439.70476244,0.000109,2]
[340100361,1728537043316,-305.77539499,0.000109,2]
[340100362,1728537043344,-259.4880914,0.000109,2]
[340100363,1728537043383,-295.86000036,0.000109,2]
[340100368,1728537045909,-7302.87455081,0.000109,2]
[340100369,1728537045919,-199.472,0.000109,2]
[340100370,1728537045928,-173.507078,0.000109,2]
[340100371,1728537045937,-338.46791679,0.000109,2]
[340100372,1728537045946,-4167.12887757,0.000109,2]
[340100373,1728537045964,-3332.87112243,0.000109,2]
[340100374,1728537045974,-5988.49125948,0.000109,2]
[340100375,1728537045983,-150.0,0.00010904,2]
[340100376,1728537045992,-150.0,0.00010906,2]
[340100377,1728537046001,-150.0,0.00010908,2]
[340100378,1728537046011,-150.0,0.00010908,2]
[340100379,1728537046021,-500.0,0.00010912,2]
[340100380,1728537046030,-150.0,0.00010913,2]
[340100381,1728537046040,-150.0,0.00010916,2]
[340100382,1728537046049,-150.0,0.00010918,2]
[340100383,1728537046058,-150.0,0.0001092,2]
[340100384,1728537046068,-150.0,0.0001092,2]
[340100385,1728537046078,-150.0,0.00010921,2]
[340100386,1728537046088,-150.0,0.00010923,2]
[340100387,1728537046097,-150.0,0.00010925,2]
[340100388,1728537046107,-150.0,0.00010932,2]
[340100389,1728537046117,-150.0,0.00010939,2]
[340100390,1728537046127,-150.0,0.00010945,2]
[340100391,1728537046136,-150.0,0.00010945,2]
[340100392,1728537046145,-4754.059,0.00010945,2]
[340100393,1728537046154,-150.0,0.00010945,2]
[340100394,1728537046163,-8352.233,0.00010945,2]
[340100395,1728537046173,-1083.0,0.00010945,2]
[340100396,1728537046183,-150.0,0.00010947,2]
[340100397,1728537046193,-150.0,0.00010956,2]
[340100398,1728537046203,-153.28,0.00010959,2]
[340100399,1728537046212,-150.0,0.00010959,2]
[340100400,1728537046222,-159.23,0.00010959,2]
[340100401,1728537046232,-200.0,0.00010959,2]